bitfinex-derivatives/quotes_BTCF0:USTF0_20251108
["timestamp","ask_amount","ask_price","bid_price","bid_amount"]
[1762618842119,0.36639411,101820.0,101810.0,0.58052088]
[1762618842319,0.26814731,101820.0,101810.0,0.58052088]
[1762618842716,0.36639421,101820.0,101810.0,0.58052088]
[1762618843210,0.38399805,101820.0,101810.0,0.48226438]
[1762618844417,0.38399805,101820.0,101810.0,0.21972088]
[1762618844602,0.38399805,101820.0,101810.0,0.1012565]
[1762618844809,0.1578265,101810.0,101800.0,0.4590661]
[1762618845115,0.1576962,101800.0,101790.0,0.0982707]
[1762618845318,0.21074863,101800.0,101790.0,0.21673508]
[1762618845518,0.37834693,101800.0,101790.0,0.21673508]
[1762618845917,0.39602916,101800.0,101790.0,0.21673508]
[1762618846304,0.37830933,101800.0,101790.0,0.57753508]
[1762618846714,0.39602916,101800.0,101790.0,0.21673508]
[1762618846920,0.39602916,101800.0,101790.0,0.21973508]
[1762618847419,0.29776296,101800.0,101790.0,0.58053508]
[1762618847613,0.28002299,101800.0,101790.0,0.58053508]
[1762618848513,0.28002299,101800.0,101790.0,0.4620707]
[1762618848714,0.28002299,101800.0,101790.0,0.58053508]
[1762618849314,0.37828919,101800.0,101790.0,0.6123758]
[1762618849521,0.28002299,101800.0,101790.0,0.73084018]
[1762618852311,0.28002299,101800.0,101790.0,0.6123758]
[1762618852511,0.28002299,101800.0,101790.0,0.73084018]
[1762618853110,0.37828919,101800.0,101790.0,0.73084018]
[1762618854220,0.41358741,101800.0,101790.0,0.73084018]
[1762618854619,0.37828919,101800.0,101790.0,0.73084018]
[1762618857425,0.37828919,101800.0,101790.0,0.5141]
[1762618857722,0.37828919,101800.0,101790.0,0.63256438]
[1762618858020,0.37828919,101800.0,101790.0,0.73084018]
[1762618859022,0.28002299,101800.0,101790.0,0.73084018]
[1762618859922,0.31531213,101800.0,101790.0,0.73084018]
[1762618860125,0.37828919,101800.0,101790.0,0.73084018]
[1762618861418,0.37828919,101800.0,101790.0,0.6123758]
[1762618861620,0.37828919,101800.0,101790.0,0.73084018]
[1762618862632,0.28002299,101800.0,101790.0,0.73084018]
[1762618863013,0.3153104,101800.0,101790.0,0.73084018]
[1762618863213,0.4135766,101800.0,101790.0,0.73084018]
[1762618863725,0.37828919,101800.0,101790.0,0.73084018]
[1762618864234,0.28002299,101800.0,101790.0,0.73084018]
[1762618864421,0.37828919,101800.0,101790.0,0.73084018]
[1762618865520,0.28002299,101800.0,101790.0,0.73084018]
[1762618865917,0.37828919,101800.0,101790.0,0.73084018]
[1762618868720,0.28002299,101800.0,101790.0,0.73084018]
[1762618869433,0.28002299,101800.0,101790.0,0.84930456]
[1762618869632,0.37874919,101800.0,101790.0,0.73084018]
[1762618870234,0.3257545,101800.0,101790.0,0.73084018]
[1762618871222,0.39648916,101800.0,101790.0,0.005]
[1762618871425,0.80501888,101800.0,101790.0,0.00049019]
[1762618871832,0.89327088,101800.0,101790.0,0.00049019]
[1762618872941,0.0982855,101780.0,101770.0,0.57762672]
[1762618873244,0.40889137,101780.0,101770.0,0.45916234]
[1762618875847,0.40989137,101780.0,101770.0,0.45916234]
[1762618876046,0.40989137,101780.0,101770.0,0.09836234]
[1762618876545,0.41980055,101780.0,101770.0,0.09836234]
[1762618879251,0.34911835,101780.0,101770.0,0.21682672]
[1762618879951,0.30376829,101780.0,101770.0,0.57762672]
[1762618881044,0.40205379,101780.0,101770.0,0.57762672]
[1762618881350,0.30376829,101780.0,101770.0,0.57762672]
[1762618881852,0.30586049,101780.0,101770.0,0.57762672]
[1762618882052,0.28360049,101780.0,101770.0,0.57762672]
[1762618882243,0.03573345,101780.0,101770.0,0.57762672]
[1762618882949,0.12943483,101780.0,101770.0,0.57762672]
[1762618883151,0.10615483,101780.0,101770.0,0.57762672]
[1762618883456,0.07087345,101780.0,101770.0,0.57762672]
[1762618883656,0.04861345,101780.0,101770.0,0.57762672]
[1762618883858,0.03573345,101780.0,101770.0,0.57762672]
[1762618884556,0.03573345,101780.0,101770.0,0.72592672]
[1762618884758,0.08836384,101790.0,101780.0,0.0982855]
[1762618884946,0.00014702,101790.0,101780.0,0.94161426]
[1762618885152,0.05031207,101790.0,101780.0,0.94161426]
[1762618885652,0.00014702,101790.0,101780.0,0.94161426]
[1762618886060,0.00214702,101790.0,101780.0,0.94161426]
[1762618886858,0.00214702,101790.0,101780.0,1.54161426]
[1762618887258,0.03528138,101800.0,101790.0,0.0982758]
[1762618887461,0.03528138,101800.0,101790.0,0.69600456]
[1762618887758,0.22477739,101800.0,101790.0,0.69600456]
[1762618888062,0.07772456,101800.0,101790.0,0.69600456]
[1762618888562,0.07872456,101800.0,101790.0,0.94160456]
[1762618888859,0.05308246,101810.0,101790.0,1.08990456]
[1762618889160,0.08778544,101830.0,101800.0,0.94155496]
[1762618889361,0.11049544,101830.0,101820.0,0.69597566]
[1762618889550,0.25726447,101830.0,101820.0,0.69597566]
[1762618891156,0.16174903,101830.0,101820.0,1.05677566]
[1762618891355,0.16274903,101830.0,101820.0,1.05677566]
[1762618891855,0.01598,101830.0,101820.0,1.05677566]
[1762618892063,0.003,101830.0,101820.0,1.05677566]
[1762618892352,0.06056,101830.0,101820.0,1.05677566]
[1762618892557,0.003,101830.0,101820.0,1.05677566]
[1762618893361,0.01598,101830.0,101820.0,1.05677566]
[1762618893758,0.03785,101830.0,101820.0,1.05677566]
[1762618893958,0.06056,101830.0,101820.0,1.05677566]
[1762618896160,0.06056,101830.0,101820.0,1.20507566]
[1762618896362,0.06056,101830.0,101820.0,1.20502706]
[1762618897858,0.30526784,101830.0,101820.0,1.20502706]
[1762618899957,0.20703064,101830.0,101820.0,1.20502706]
[1762618901668,0.30526784,101830.0,101820.0,1.20502706]
[1762618901862,0.20703064,101830.0,101820.0,1.20502706]
[1762618905962,0.30526784,101830.0,101820.0,1.20502706]
[1762618907569,0.30526784,101830.0,101820.0,1.10678016]
[1762618907765,0.30526784,101830.0,101820.0,0.74598016]
[1762618908076,0.30526784,101830.0,101820.0,0.26674008]
[1762618908273,0.35820328,101830.0,101820.0,0.26674008]
[1762618909175,0.35820328,101830.0,101820.0,0.84422706]
[1762618909382,0.25996608,101830.0,101820.0,0.84422706]
[1762618909582,0.20703064,101830.0,101820.0,0.84422706]
[1762618911178,0.25996608,101830.0,101820.0,0.84422706]
[1762618911982,0.20703064,101830.0,101820.0,0.84422706]
[1762618914180,0.25996608,101830.0,101820.0,0.84422706]
[1762618914684,0.07082922,101840.0,101820.0,1.05988714]
[1762618914979,0.01298,101850.0,101840.0,0.0982276]
[1762618915183,0.06773473,101850.0,101840.0,0.33510776]
[1762618915385,0.21448196,101850.0,101840.0,0.33510776]
[1762618915577,0.21448196,101850.0,101840.0,0.69590776]
[1762618916175,0.20469723,101850.0,101840.0,0.69590776]
[1762618916373,0.18252723,101850.0,101840.0,0.69590776]
[1762618916581,0.21742327,101850.0,101840.0,0.69590776]
[1762618917081,0.20745723,101850.0,101840.0,0.69590776]
[1762618917493,0.21045723,101850.0,101840.0,0.69590776]
[1762618918882,0.24573713,101850.0,101840.0,0.69590776]
[1762618919190,0.24273713,101850.0,101840.0,0.69590776]
[1762618919487,0.25341776,101850.0,101840.0,0.69590776]
[1762618919986,0.25041776,101850.0,101840.0,0.69590776]
[1762618920185,0.25141776,101850.0,101840.0,0.84420776]
[1762618920782,0.25141776,101850.0,101840.0,0.96264784]
[1762618920980,0.25141776,101850.0,101840.0,0.59768016]
[1762618921283,0.1561976,101840.0,101830.0,0.1185871]
[1762618921495,0.22676668,101840.0,101830.0,0.1185871]
[1762618921689,0.27575147,101840.0,101830.0,0.2168243]
[1762618921883,0.27575147,101840.0,101830.0,0.69606438]
[1762618922080,0.24046514,101840.0,101830.0,0.69606438]
[1762618923992,0.24046514,101840.0,101830.0,0.45918422]
[1762618924195,0.24046514,101840.0,101830.0,0.69606438]
[1762618924392,0.24046514,101840.0,101830.0,0.6072159]
[1762618924593,0.33869274,101840.0,101830.0,0.6072159]
[1762618925487,0.24046514,101840.0,101830.0,0.6072159]
[1762618925794,0.33969274,101840.0,101830.0,0.6072159]
[1762618926298,0.24146514,101840.0,101830.0,0.45918422]
[1762618926593,0.24146261,101840.0,101830.0,0.45918422]
[1762618926793,0.24146261,101840.0,101830.0,0.6072159]
[1762618927195,0.34069021,101840.0,101830.0,0.6072159]
[1762618927396,0.24246261,101840.0,101830.0,0.6072159]
[1762618930103,0.24146261,101840.0,101830.0,0.6072159]
[1762618930291,0.24046261,101840.0,101830.0,0.6072159]
[1762618931198,0.24146261,101840.0,101830.0,0.6072159]
[1762618931702,0.19728261,101840.0,101830.0,0.6072159]
[1762618931889,0.16200239,101840.0,101830.0,0.6072159]
[1762618932290,0.18525239,101840.0,101830.0,0.6072159]
[1762618932495,0.20718239,101840.0,101830.0,0.6072159]
[1762618933405,0.20518239,101840.0,101830.0,0.6072159]
[1762618935006,0.24046261,101840.0,101830.0,0.6072159]
[1762618935303,0.33869021,101840.0,101830.0,0.6072159]
[1762618935506,0.39160309,101840.0,101830.0,0.36094702]
[1762618935707,0.35632287,101840.0,101830.0,0.00014702]
[1762618935904,0.30340999,101840.0,101830.0,0.00014702]
[1762618936101,0.37497907,101840.0,101830.0,0.00014702]
[1762618936406,0.37597907,101840.0,101830.0,0.00014702]
[1762618936822,0.37497907,101840.0,101830.0,0.00014702]
[1762618937119,0.73877907,101840.0,101830.0,0.00014702]
[1762618938414,0.73777907,101840.0,101830.0,0.00014702]
[1762618938623,0.73977907,101840.0,101830.0,0.00014702]
[1762618938819,0.37897907,101840.0,101830.0,0.00014702]
[1762618939125,0.37897907,101840.0,101830.0,0.09838422]
[1762618940717,0.73977907,101840.0,101830.0,0.09838422]
[1762618941814,0.73977907,101840.0,101830.0,0.08560585]
[1762618943122,0.1562072,101830.0,101820.0,0.7555174]
[1762618943319,0.20914797,101830.0,101820.0,0.7555174]
[1762618943524,0.35727551,101830.0,101820.0,0.7555174]
[1762618944323,0.30433474,101830.0,101820.0,0.00014702]
[1762618944624,0.73670382,101830.0,101820.0,0.00014702]
[1762618945016,0.73770382,101830.0,101820.0,0.00014702]
[1762618945919,0.1573265,101810.0,101800.0,0.55605141]
[1762618946111,0.21025822,101810.0,101800.0,0.55605141]
[1762618946318,0.3576517,101810.0,101800.0,0.65431091]
[1762618946718,0.2593952,101810.0,101800.0,0.65431091]
[1762618946918,0.3576517,101810.0,101800.0,0.65431091]
[1762618947124,0.3576517,101810.0,101800.0,0.65631091]
[1762618948022,0.3576517,101810.0,101800.0,0.65731091]
[1762618949021,0.3576517,101810.0,101800.0,0.29651091]
[1762618949221,0.3576517,101810.0,101800.0,0.05021973]
[1762618949422,0.7184517,101810.0,101800.0,0.05021973]
[1762618949622,0.7184517,101810.0,101800.0,0.14848593]
[1762618949823,0.3576517,101810.0,101800.0,0.50928593]
[1762618950031,0.2593952,101810.0,101800.0,0.65731761]
[1762618950233,0.3576517,101810.0,101800.0,0.65731761]
[1762618950728,0.2593952,101810.0,101800.0,0.65731761]
[1762618950933,0.2593952,101810.0,101800.0,0.65531761]
[1762618951228,0.2643952,101810.0,101800.0,0.65431761]
[1762618951823,0.2623952,101810.0,101800.0,0.65431761]
[1762618952025,0.2633952,101810.0,101800.0,0.65431761]
[1762618953334,0.2603952,101810.0,101800.0,0.65431761]
[1762618953535,0.2613952,101810.0,101800.0,0.65431761]
[1762618954429,0.2613952,101810.0,101800.0,0.74329497]
[1762618954734,0.2613952,101810.0,101800.0,0.89159497]
[1762618954933,0.2613952,101810.0,101800.0,1.01009949]
[1762618955133,0.20846348,101810.0,101800.0,1.01009949]
[1762618955632,0.16260348,101810.0,101800.0,1.01009949]
[1762618955934,0.18581348,101810.0,101800.0,1.37089949]
[1762618956336,0.18581348,101810.0,101800.0,1.31157787]
[1762618956835,0.16160348,101810.0,101800.0,1.31157787]
[1762618957028,0.16060348,101810.0,101800.0,1.31157787]
[1762618957433,0.18381348,101810.0,101800.0,1.31157787]
[1762618957633,0.16060348,101810.0,101800.0,1.31157787]
[1762618958436,0.16060348,101810.0,101800.0,1.26360492]
[1762618958626,0.14739348,101810.0,101800.0,1.26360492]
[1762618958828,0.00014702,101820.0,101810.0,0.0982565]
[1762618959033,0.01279,101840.0,101830.0,0.0982372]
[1762618959235,0.036,101840.0,101830.0,0.34645619]
[1762618959438,0.12168235,101850.0,101840.0,0.0982276]
[1762618959633,0.12168235,101850.0,101840.0,0.70724659]
[1762618959827,0.26954351,101850.0,101840.0,0.70724659]
[1762618960140,0.25986288,101850.0,101840.0,0.70724659]
[1762618960731,0.20693116,101850.0,101840.0,0.70724659]
[1762618961130,0.18428116,101850.0,101840.0,0.70724659]
[1762618961333,0.16207116,101850.0,101840.0,0.70724659]
[1762618961931,0.16307116,101850.0,101840.0,0.70724659]
[1762618962646,0.18628116,101850.0,101840.0,0.70724659]
[1762618962842,0.20893116,101850.0,101840.0,0.70724659]
[1762618963531,0.18628116,101850.0,101840.0,0.70724659]
[1762618965944,0.20775116,101850.0,101840.0,0.70724659]
[1762618966534,0.20775116,101850.0,101840.0,0.85554659]
[1762618972534,0.30596906,101850.0,101840.0,0.85554659]
[1762618972744,0.20775116,101850.0,101840.0,0.4590276]
[1762618972946,0.30596906,101850.0,101840.0,0.4590276]
[1762618974451,0.20775116,101850.0,101840.0,0.70724659]
[1762618975644,0.30596906,101850.0,101840.0,0.70724659]
[1762618976344,0.30596906,101850.0,101840.0,0.57744533]
[1762618976542,0.30596906,101850.0,101830.0,0.45917882]
[1762618976742,0.1578476,101840.0,101830.0,0.57759655]
[1762618977140,0.30572603,101840.0,101830.0,0.57759655]
[1762618977645,0.30572603,101840.0,101830.0,0.11856475]
[1762618977845,0.71945775,101840.0,101830.0,0.11856475]
[1762618978346,0.71945775,101840.0,101830.0,0.09838422]
[1762618979339,0.35865775,101840.0,101830.0,0.09838422]
[1762618980343,0.71945775,101840.0,101830.0,0.09838422]
[1762618981050,0.36665775,101840.0,101830.0,0.09838422]
[1762618981247,0.72745775,101840.0,101830.0,0.09838422]
[1762618981446,0.36665775,101840.0,101830.0,0.09838422]
[1762618981841,0.36465775,101840.0,101830.0,0.09838422]
[1762618982249,0.36365775,101840.0,101830.0,0.09838422]
[1762618982741,0.36365775,101840.0,101830.0,0.45918422]
[1762618985447,0.36365775,101840.0,101830.0,0.09838422]
[1762618985938,0.72445775,101840.0,101830.0,0.00014702]
[1762618986138,0.74210166,101840.0,101830.0,0.00014702]
[1762618986342,0.74210166,101840.0,101830.0,0.09838422]
[1762618987551,0.74210166,101840.0,101830.0,0.00014702]
[1762618987854,0.74210166,101840.0,101830.0,0.09838422]
[1762618988154,0.64387406,101840.0,101830.0,0.09838422]
[1762618988349,0.26537962,101840.0,101830.0,0.70739016]
[1762618988655,0.38130166,101840.0,101830.0,0.34659016]
[1762618988842,0.31072603,101840.0,101830.0,0.09838422]
[1762618989043,0.31072603,101840.0,101830.0,0.45918422]
[1762618989250,0.36360745,101840.0,101830.0,0.45918422]
[1762618989952,0.36360745,101840.0,101830.0,0.34659016]
[1762618990156,0.36360745,101840.0,101830.0,0.09838422]
[1762618990656,0.74210166,101840.0,101830.0,0.09838422]
[1762618991056,0.74210166,101840.0,101830.0,0.00014702]
[1762618991355,0.1569472,101830.0,101820.0,0.0982456]
[1762618991544,0.1569569,101820.0,101810.0,0.607349]
[1762618991856,0.35736282,101820.0,101810.0,0.607349]
[1762618992855,0.25911592,101820.0,101810.0,0.607349]
[1762618993044,0.20623801,101820.0,101810.0,0.607349]
[1762618994455,0.30448491,101820.0,101810.0,0.607349]
[1762618994657,0.20623801,101820.0,101810.0,0.85555494]
[1762618995658,0.20723801,101820.0,101810.0,0.85555494]
[1762618996449,0.20823801,101820.0,101810.0,0.85555494]
[1762618999061,0.30648491,101820.0,101810.0,0.85555494]
[1762618999253,0.35936282,101820.0,101810.0,0.85555494]
[1762618999449,0.26111592,101820.0,101810.0,0.85555494]
[1762619000368,0.26111592,101820.0,101810.0,0.72582702]
[1762619000755,0.20823801,101820.0,101810.0,0.72582702]
[1762619000965,0.26111592,101820.0,101810.0,0.72582702]
[1762619001365,0.20823801,101820.0,101810.0,0.72582702]
[1762619002165,0.26111592,101820.0,101810.0,0.72582702]
[1762619002763,0.18492801,101820.0,101810.0,0.84430504]
[1762619003161,0.20823801,101820.0,101810.0,0.84430504]
[1762619003362,0.26111592,101820.0,101810.0,0.84430504]
[1762619004063,0.23780592,101820.0,101810.0,0.84430504]
[1762619004259,0.01569,101820.0,101810.0,0.86960405]
[1762619004855,0.06671493,101830.0,101810.0,0.86960405]
[1762619005062,0.01383702,101830.0,101820.0,0.69600294]
[1762619005261,0.1477637,101830.0,101820.0,0.69600294]
[1762619005459,0.2066137,101830.0,101820.0,0.4590469]
[1762619005767,0.35772881,101830.0,101820.0,0.47927802]
[1762619006269,0.37542653,101830.0,101820.0,0.11847802]
[1762619006864,0.37642653,101830.0,101820.0,0.11847802]
[1762619007671,0.1570969,101820.0,101810.0,0.72582712]
[1762619007870,0.22767253,101820.0,101810.0,0.72582712]
[1762619008174,0.35801043,101820.0,101810.0,0.72582712]
[1762619008375,0.35801043,101820.0,101810.0,0.6073491]
[1762619009675,0.35901043,101820.0,101810.0,0.6073491]
[1762619009879,0.36001043,101820.0,101810.0,0.6073491]
[1762619010169,0.36001043,101820.0,101810.0,0.1483]
[1762619010575,0.36001043,101820.0,101810.0,0.2465565]
[1762619011070,0.26176353,101820.0,101810.0,0.6073565]
[1762619011271,0.36001043,101820.0,101810.0,0.6073565]
[1762619011575,0.36001043,101820.0,101810.0,0.85563195]
[1762619011873,0.36001043,101820.0,101810.0,0.2465565]
[1762619012069,0.37758559,101820.0,101810.0,0.2465565]
[1762619012470,0.37758559,101820.0,101810.0,0.49483195]
[1762619012972,0.30700996,101820.0,101810.0,0.49483195]
[1762619013173,0.30700996,101820.0,101810.0,0.2465565]
[1762619013362,0.30700996,101820.0,101810.0,0.1483]
[1762619013567,0.30700996,101820.0,101810.0,0.2465565]
[1762619014275,0.37758559,101820.0,101810.0,0.2465565]
[1762619015293,0.37758559,101820.0,101810.0,0.1483]
[1762619015472,0.73838559,101820.0,101810.0,0.1483]
[1762619016576,0.73838559,101820.0,101810.0,0.2465565]
[1762619018375,0.37758559,101820.0,101810.0,0.2465565]
[1762619018577,0.27933869,101820.0,101810.0,0.6073565]
[1762619019179,0.27933869,101820.0,101810.0,0.4590565]
[1762619019873,0.27933869,101820.0,101810.0,0.70733195]
[1762619020076,0.26176697,101820.0,101810.0,0.70733195]
[1762619020379,0.26176697,101820.0,101810.0,0.60712979]
[1762619022279,0.26176697,101820.0,101810.0,0.75542979]
[1762619022773,0.36001377,101820.0,101810.0,0.75542979]
[1762619023277,0.30700986,101820.0,101810.0,0.65717329]
[1762619023482,0.30700986,101820.0,101810.0,0.75542979]
[1762619023781,0.37758549,101820.0,101810.0,0.75542979]
[1762619024084,0.30700986,101820.0,101810.0,0.75542979]
[1762619024481,0.37758549,101820.0,101810.0,0.75542979]
[1762619025582,0.3600241,101820.0,101810.0,0.78076763]
[1762619027180,0.2617773,101820.0,101810.0,0.78076763]
[1762619027383,0.30700986,101820.0,101810.0,0.78076763]
[1762619027782,0.20876306,101820.0,101810.0,0.78076763]
[1762619028385,0.20876306,101820.0,101810.0,0.86964622]
[1762619029887,0.30700986,101820.0,101810.0,0.86964622]
[1762619030788,0.3600241,101820.0,101810.0,0.84430838]
[1762619031378,0.2617773,101820.0,101810.0,0.84430838]
[1762619031883,0.2617756,101820.0,101810.0,0.84430838]
[1762619032276,0.3600224,101820.0,101810.0,0.84430838]
[1762619033783,0.2617756,101820.0,101810.0,0.84430838]
[1762619034589,0.3600224,101820.0,101810.0,0.84430838]
[1762619034790,0.2617756,101820.0,101810.0,0.84430838]
[1762619035389,0.27933869,101820.0,101810.0,0.84430838]
[1762619040301,0.05319403,101830.0,101810.0,0.96701402]
[1762619040594,0.28754188,101860.0,101830.0,0.6876585]
[1762619040595,0.27001598,101860.0,101830.0,0.6876585]
[1762619040894,0.2177623,101860.0,101850.0,0.0982179]
[1762619041192,0.101602,101870.0,101860.0,0.0982083]
[1762619041389,0.24815419,101880.0,101870.0,0.0981986]
[1762619041587,0.03633,101880.0,101870.0,0.0981986]
[1762619041888,0.18318701,101880.0,101870.0,0.33515048]
[1762619042296,0.0575,101890.0,101880.0,0.098189]
[1762619042497,0.03633,101890.0,101880.0,0.39387822]
[1762619042696,0.0575,101890.0,101880.0,0.39387822]
[1762619043201,0.0575,101890.0,101880.0,1.11547822]
[1762619043585,0.01335,101890.0,101880.0,1.11547822]
[1762619043790,0.005,101890.0,101880.0,1.36083822]
[1762619043987,0.01349702,101900.0,101890.0,0.0981794]
[1762619044287,0.01349702,101900.0,101890.0,0.60682401]
[1762619044490,0.01349702,101900.0,101890.0,0.85218401]
[1762619044887,0.05764702,101900.0,101890.0,0.60682401]
[1762619045501,0.06264702,101900.0,101890.0,0.60682401]
[1762619046302,0.06864702,101900.0,101890.0,0.60682401]
[1762619047694,0.21509042,101900.0,101890.0,0.60682401]
[1762619047891,0.21509042,101900.0,101890.0,0.50864461]
[1762619048093,0.31326012,101900.0,101890.0,0.3608]
[1762619049587,0.31326012,101900.0,101880.0,0.50864461]
[1762619049791,0.0575,101890.0,101880.0,0.50864461]
[1762619050100,0.20459247,101890.0,101880.0,0.60683361]
[1762619050297,0.20459247,101890.0,101880.0,0.458989]
[1762619050490,0.20459247,101890.0,101880.0,0.60683361]
[1762619050893,0.20459247,101890.0,101880.0,0.458989]
[1762619051401,0.20459247,101890.0,101880.0,0.60683361]
[1762619052096,0.20659247,101890.0,101880.0,0.60683361]
[1762619053301,0.21059247,101890.0,101880.0,0.60683361]
[1762619060698,0.30877177,101890.0,101880.0,0.60683361]
[1762619060902,0.21059247,101890.0,101880.0,0.60683361]
[1762619062300,0.21059247,101890.0,101880.0,0.6955926]
[1762619063105,0.21059247,101890.0,101880.0,0.8138944]
[1762619063302,0.21059247,101890.0,101880.0,0.84310762]
[1762619063699,0.006,101890.0,101880.0,0.84310762]
[1762619064396,0.006,101890.0,101880.0,1.08846762]
[1762619064606,0.01935,101890.0,101880.0,1.08846762]
[1762619065701,0.01935,101890.0,101880.0,0.84310762]
[1762619065905,0.06404,101890.0,101880.0,0.48820222]
[1762619066204,0.06404,101890.0,101880.0,0.72480582]
[1762619067199,0.06404,101890.0,101880.0,0.75116089]
[1762619068304,0.06404,101890.0,101880.0,0.78646043]
[1762619069006,0.06104,101890.0,101880.0,0.78646043]
[1762619069206,0.05904,101890.0,101880.0,0.81305467]
[1762619069405,0.05904,101890.0,101880.0,0.81405467]
[1762619070408,0.05904,101890.0,101880.0,0.93235647]
[1762619070608,0.05904,101890.0,101880.0,0.90576468]
[1762619071303,0.05904,101890.0,101880.0,0.87940716]
[1762619071504,0.05904,101890.0,101880.0,0.76110536]
[1762619071709,0.05904,101890.0,101880.0,0.78748393]
[1762619072409,0.05904,101890.0,101880.0,0.76110536]
[1762619072610,0.05904,101890.0,101880.0,0.78749042]
[1762619073311,0.05904,101890.0,101880.0,0.76110536]
[1762619073714,0.05904,101890.0,101880.0,0.78749258]
[1762619074210,0.01435,101890.0,101880.0,0.93235647]
[1762619074405,0.01435,101890.0,101880.0,0.87940716]
[1762619074605,0.03744,101890.0,101880.0,0.87940716]
[1762619075113,0.03744,101890.0,101880.0,1.02770716]
[1762619075715,0.03744,101890.0,101880.0,1.05409157]
[1762619077306,0.01435,101890.0,101880.0,1.02770716]
[1762619078513,0.03744,101890.0,101880.0,1.02770716]
[1762619079415,0.01435,101890.0,101880.0,1.02770716]
[1762619081211,0.01435,101890.0,101880.0,1.05408065]
[1762619082111,0.001,101890.0,101880.0,1.02770716]
[1762619082315,0.05829702,101900.0,101890.0,0.0981793]
[1762619082516,0.05829702,101900.0,101890.0,0.63283046]
[1762619082718,0.20598429,101900.0,101890.0,0.63283046]
[1762619083519,0.20798429,101900.0,101890.0,0.51456366]
[1762619083719,0.20798429,101900.0,101890.0,0.63283046]
[1762619086818,0.20798429,101900.0,101890.0,0.78113046]
[1762619087721,0.20798429,101900.0,101890.0,0.77893354]
[1762619092234,0.24331475,101900.0,101890.0,0.7255461]
[1762619092827,0.29631045,101900.0,101890.0,0.7255461]
[1762619094035,0.24331475,101900.0,101890.0,0.7255461]
[1762619094235,0.29631045,101900.0,101890.0,0.7255461]
[1762619094540,0.24331475,101900.0,101890.0,0.7255461]
[1762619095137,0.29631045,101900.0,101890.0,0.7255461]
[1762619095327,0.24331475,101900.0,101890.0,0.7255461]
[1762619096034,0.29631045,101900.0,101890.0,0.7255461]
[1762619096338,0.26097999,101900.0,101890.0,0.7255461]
[1762619098937,0.26097999,101900.0,101890.0,0.3647461]
[1762619099242,0.26097999,101900.0,101890.0,0.7255461]
[1762619099839,0.35914969,101900.0,101890.0,0.5772461]
[1762619100034,0.30615399,101900.0,101890.0,0.5772461]
[1762619100241,0.30615399,101900.0,101890.0,0.4589793]
[1762619100549,0.30615399,101900.0,101890.0,0.5772461]
[1762619100745,0.3591572,101900.0,101890.0,0.5772461]
[1762619101044,0.2609875,101900.0,101890.0,0.5772461]
[1762619103640,0.3591572,101900.0,101890.0,0.5772461]
[1762619104136,0.2609875,101900.0,101890.0,0.5772461]
[1762619104543,0.3591572,101900.0,101890.0,0.5772461]
[1762619105044,0.30615399,101900.0,101890.0,0.5772461]
[1762619105749,0.30615399,101900.0,101890.0,0.1182668]
[1762619105942,0.1550593,101890.0,101880.0,0.5772558]
[1762619106133,0.20804165,101890.0,101880.0,0.5772558]
[1762619106339,0.35603946,101890.0,101880.0,0.5772558]
[1762619107050,0.35703946,101890.0,101880.0,0.5772558]
[1762619107746,0.1550689,101880.0,101870.0,0.36094702]
[1762619107954,0.5865032,101880.0,101870.0,0.00014702]
[1762619108248,0.73372408,101880.0,101870.0,0.09834562]
[1762619108449,0.73372408,101880.0,101870.0,0.00014702]
[1762619108646,0.73372408,101880.0,101870.0,0.09834562]
[1762619108945,0.37292408,101880.0,101870.0,0.09834562]
[1762619109145,0.30228978,101880.0,101870.0,0.09834562]
[1762619109449,0.30328978,101880.0,101870.0,0.21661242]
[1762619109836,0.20810088,101880.0,101870.0,0.21661242]
[1762619110046,0.20810088,101880.0,101870.0,0.57741242]
[1762619110249,0.26100311,101880.0,101870.0,0.21661242]
[1762619110548,0.20810088,101880.0,101870.0,0.21661242]
[1762619110737,0.30528978,101880.0,101870.0,0.21661242]
[1762619110933,0.30428978,101880.0,101870.0,0.21661242]
[1762619111542,0.20610088,101880.0,101870.0,0.57741242]
[1762619111748,0.35717708,101880.0,101870.0,0.57741242]
[1762619111943,0.25898818,101880.0,101870.0,0.57741242]
[1762619112149,0.35717708,101880.0,101870.0,0.57741242]
[1762619113248,0.35717708,101880.0,101870.0,0.72571242]
[1762619113553,0.35717708,101880.0,101870.0,0.36491242]
[1762619114651,0.35717708,101880.0,101870.0,0.72571242]
[1762619115342,0.25898818,101880.0,101870.0,0.72571242]
[1762619115543,0.35717708,101880.0,101870.0,0.72571242]
[1762619115948,0.25898818,101880.0,101870.0,0.72571242]
[1762619116242,0.35717708,101880.0,101870.0,0.36491242]
[1762619116951,0.35717708,101880.0,101870.0,0.26671382]
[1762619117153,0.35717708,101880.0,101870.0,0.36491242]
[1762619117954,0.35717708,101880.0,101870.0,0.24664562]
[1762619118255,0.35717708,101880.0,101870.0,0.14844702]
[1762619118561,0.35717708,101880.0,101870.0,0.26671382]
[1762619119056,0.35717708,101880.0,101870.0,0.36491242]
[1762619119955,0.35717708,101880.0,101870.0,0.72571242]
[1762619120146,0.25898818,101880.0,101870.0,0.72571242]
[1762619120454,0.35717718,101880.0,101870.0,0.72571242]
[1762619121254,0.35717718,101880.0,101870.0,0.36491242]
[1762619123153,0.35717718,101880.0,101870.0,0.26671382]
[1762619123354,0.66508988,101880.0,101870.0,0.14844702]
[1762619123556,0.66508988,101880.0,101870.0,0.24664562]
[1762619123751,0.66508988,101880.0,101870.0,0.14844702]
[1762619124264,0.73572418,101880.0,101870.0,0.14844702]
[1762619124853,0.73572418,101880.0,101870.0,0.00014702]
[1762619125556,0.73572418,101880.0,101870.0,0.09834562]
[1762619125861,0.73572418,101880.0,101870.0,0.00014702]
[1762619126660,0.73572418,101880.0,101870.0,0.09834562]
[1762619127257,0.37492418,101880.0,101870.0,0.09834562]
[1762619127857,0.73572418,101880.0,101870.0,0.09834562]
[1762619128058,0.37492418,101880.0,101870.0,0.09834562]
[1762619128250,0.30428988,101880.0,101870.0,0.09834562]
[1762619129162,0.66508988,101880.0,101870.0,0.09834562]
[1762619129354,0.73572418,101880.0,101870.0,0.09834562]
[1762619129762,0.66508988,101880.0,101870.0,0.09834562]
[1762619129952,0.30428988,101880.0,101870.0,0.09834562]
[1762619130357,0.30428988,101880.0,101870.0,0.21661242]
[1762619130863,0.2590137,101880.0,101870.0,0.57741242]
[1762619131256,0.25902256,101880.0,101870.0,0.57741242]
[1762619131456,0.29430014,101880.0,101870.0,0.69567922]
[1762619131761,0.24137846,101880.0,101870.0,0.69567922]
[1762619132862,0.24137846,101880.0,101870.0,0.57841242]
[1762619133065,0.29430014,101880.0,101870.0,0.57841242]
[1762619133763,0.29330014,101880.0,101870.0,0.57841242]
[1762619133966,0.24037846,101880.0,101870.0,0.57841242]
[1762619135969,0.24037846,101880.0,101870.0,0.69667922]
[1762619136572,0.24037846,101880.0,101870.0,0.84497922]
[1762619137068,0.29330014,101880.0,101870.0,0.84497922]
[1762619137263,0.27146014,101880.0,101870.0,0.84497922]
[1762619137459,0.03627758,101880.0,101870.0,0.84497922]
[1762619137664,0.11105168,101890.0,101880.0,0.098189]